bitfinex-derivatives/quotes_ETHF0:USTF0_20251203
["timestamp","ask_amount","ask_price","bid_price","bid_amount"]
[1764790315042,1.82177751,3119.8,3119.7,0.747]
[1764790315347,1.49471482,3119.8,3119.7,0.747]
[1764790315644,0.72731482,3119.8,3119.7,1.506]
[1764790315844,1.4913,3119.5,3119.3,0.86207397]
[1764790316045,1.4913,3119.3,3119.2,0.00480877]
[1764790316845,7.81818191,3119.3,3119.2,0.00480877]
[1764790317041,1.4913,3118.8,3118.7,0.86207397]
[1764790317441,42.2913,3118.8,3118.7,0.86207397]
[1764790319743,42.2913,3118.8,3118.7,1.60907397]
[1764790320142,1.4913,3118.7,3118.6,1.60907397]
[1764790320342,1.4913,3118.7,3118.6,0.86207397]
[1764790321452,1.4913,3118.7,3118.6,1.60907397]
[1764790321650,1.4913,3118.7,3118.5,0.4633]
[1764790321651,1.4913,3118.7,3118.5,0.86207397]
[1764790321842,1.4913,3118.7,3118.4,1.7683]
[1764790321843,1.4913,3118.5,3118.4,2.63037397]
[1764790322043,40.8,3118.9,3118.5,0.4633]
[1764790322244,40.8,3118.9,3118.5,1.9693]
[1764790322245,0.7239,3118.6,3118.5,1.9693]
[1764790322449,12.697,3119.4,3118.5,1.9693]
[1764790322450,12.85724,3119.7,3118.8,1.506]
[1764790322652,0.32721499,3119.4,3118.8,1.506]
[1764790323149,0.32721499,3119.4,3118.9,0.86229127]
[1764790323448,1.5051,3119.0,3118.9,2.39069127]
[1764790323840,0.00341482,3119.8,3119.0,0.4507]
[1764790324045,1.50851482,3119.8,3119.7,1.5284]
[1764790324244,42.30851482,3119.8,3119.7,1.5284]
[1764790324654,42.30851482,3119.8,3119.7,0.7819]
[1764790325752,1.50851482,3119.8,3119.7,1.5284]
[1764790325951,0.00341482,3119.8,3119.7,1.5284]
[1764790326145,0.2244,3121.5,3119.8,1.5284]
[1764790326146,50.39457,3121.0,3119.8,1.5284]
[1764790326450,40.8,3120.9,3119.8,2.67769927]
[1764790326749,0.32741989,3120.8,3120.0,1.31271111]
[1764790327147,0.33028751,3120.8,3120.0,1.31589514]
[1764790327451,1.5051,3120.1,3120.0,2.84429514]
[1764790327841,0.00480877,3120.7,3120.0,2.84429514]
[1764790328041,1.06709011,3120.6,3120.5,1.9791]
[1764790328245,0.74460877,3120.7,3120.6,1.5284]
[1764790328640,1.50990877,3120.7,3120.6,1.5284]
[1764790331351,0.00480877,3120.7,3120.6,1.5284]
[1764790331554,0.74460877,3120.7,3120.6,1.5284]
[1764790331956,1.50990877,3120.7,3120.6,1.5284]
[1764790332857,0.00480877,3120.7,3120.6,1.5284]
[1764790334363,0.74460877,3120.7,3120.6,1.5284]
[1764790334553,1.50990877,3120.7,3120.6,0.7819]
[1764790335353,0.74460877,3120.7,3120.6,1.5284]
[1764790335555,1.50990877,3120.7,3120.6,1.5284]
[1764790335950,1.50990877,3120.7,3120.6,0.7819]
[1764790336156,1.5051,3120.6,3120.5,1.9791]
[1764790336354,0.7398,3120.6,3120.5,1.9791]
[1764790337655,0.74460877,3120.7,3120.6,1.5284]
[1764790340770,1.50990877,3120.7,3120.6,1.5284]
[1764790341357,1.50990877,3120.7,3120.5,0.4507]
[1764790341562,1.5051,3120.3,3120.2,0.7769]
[1764790341876,1.5051,3120.3,3120.2,2.3053]
[1764790342358,0.7398,3120.3,3120.2,2.3053]
[1764790342760,1.5051,3120.3,3120.2,2.3053]
[1764790344170,0.7398,3120.3,3120.2,2.3053]
[1764790347068,1.50990877,3120.7,3120.6,0.7819]
[1764790347273,1.5051,3120.6,3120.5,1.2326]
[1764790348173,0.00480877,3120.7,3120.6,1.5284]
[1764790348375,0.74460877,3120.7,3120.6,1.5284]
[1764790348967,1.50990877,3120.7,3120.6,0.7819]
[1764790349672,1.5051,3120.6,3120.5,1.2326]
[1764790350366,0.00480877,3120.7,3120.2,0.7769]
[1764790350577,0.74460877,3120.7,3120.6,1.5284]
[1764790350867,1.50990877,3120.7,3120.6,1.5284]
[1764790351262,0.00480877,3120.7,3120.6,1.5284]
[1764790352162,0.00286762,3120.8,3120.7,1.5284]
[1764790352369,50.0,3121.0,3120.9,1.5284]
[1764790353373,50.00345228,3121.0,3120.9,2.67769927]
[1764790354065,50.00345228,3121.0,3120.9,1.5284]
[1764790354959,40.09746569,3121.0,3120.9,3.25254794]
[1764790355163,35.31505073,3121.0,3120.9,7.5284]
[1764790355969,35.74905073,3121.0,3120.9,7.5284]
[1764790358875,35.31505073,3121.0,3120.9,7.5284]
[1764790359072,35.31505073,3121.0,3120.9,1.5284]
[1764790359771,35.94835073,3121.0,3120.9,0.8614399]
[1764790365781,2.1567,3120.9,3120.8,0.8614399]
[1764790374784,1.0723,3120.9,3120.8,0.8614399]
[1764790374984,2.1567,3120.9,3120.8,0.8614399]
[1764790375184,1.0723,3120.8,3120.7,1.14858654]
[1764790376090,35.94835073,3121.0,3120.6,0.781]
[1764790376091,35.94835073,3121.0,3120.8,0.16018]
[1764790376384,35.94835073,3121.0,3120.9,2.11261664]
[1764790376385,8.52742069,3121.0,3120.9,2.11261664]
[1764790376682,8.52742069,3121.0,3120.9,14.80061664]
[1764790379789,0.6333,3123.0,3120.9,28.77160557]
[1764790380092,0.6333,3123.0,3121.9,0.16012]
[1764790380280,0.6333,3123.0,3122.3,1.14803333]
[1764790380483,1.0723,3122.4,3122.3,1.14803333]
[1764790380689,2.15923264,3122.4,3122.3,1.1520965]
[1764790380887,0.32855995,3122.5,3122.3,1.1520965]
[1764790381091,0.00480877,3122.7,3122.3,6.00406317]
[1764790381280,0.00480877,3122.7,3122.6,4.24320435]
[1764790381681,0.6333,3124.0,3122.6,12.10488855]
[1764790381884,0.63713824,3124.0,3123.8,1.71765708]
[1764790382087,0.63713824,3124.0,3123.8,11.42765708]
[1764790382287,0.00383824,3124.0,3123.9,0.16002]
[1764790383391,1.59183824,3124.0,3123.9,12.684]
[1764790384496,1.59183824,3124.0,3123.9,12.683]
[1764790384497,5.43683824,3124.0,3123.9,12.683]
[1764790384693,4.31233824,3124.0,3123.9,12.683]
[1764790384896,1.59183824,3124.0,3123.9,12.683]
[1764790386300,0.00383824,3124.0,3123.9,12.683]
[1764790387797,5.43683824,3124.0,3123.9,12.68]
[1764790388194,0.00383824,3124.0,3123.9,12.68]
[1764790388802,1.59183824,3124.0,3123.8,0.16003]
[1764790389095,2.7205,3123.7,3123.6,0.00480877]
[1764790389399,1.59183824,3124.0,3123.6,0.00480877]
[1764790389400,1.59183824,3124.0,3123.6,8.02780877]
[1764790389596,0.00383824,3124.0,3123.6,8.02780877]
[1764790389900,1.59183824,3124.0,3123.7,0.16003]
[1764790390196,0.00383824,3124.0,3123.7,0.16003]
[1764790390402,0.00383824,3124.0,3123.8,0.16003]
[1764790391395,0.00383824,3124.0,3123.9,0.16002]
[1764790391600,0.00480877,3124.3,3124.2,0.16001]
[1764790392000,8.77e-06,3124.3,3124.2,0.16001]
[1764790392194,0.6333,3125.5,3124.6,0.15998]
[1764790392392,0.6333,3125.5,3124.7,8.856]
[1764790392594,0.63576824,3125.0,3124.8,0.15997]
[1764790392904,0.63576824,3125.0,3124.7,0.00303654]
[1764790393104,4.48076824,3125.0,3124.9,7.923]
[1764790393903,3.845,3124.9,3124.8,9.9955]
[1764790394301,2.7205,3124.9,3124.8,9.9955]
[1764790394695,2.7205,3124.9,3124.8,0.7835]
[1764790394997,3.845,3124.9,3124.8,2.5285]
[1764790395805,3.845,3124.9,3124.8,0.7835]
[1764790396004,1.588,3124.0,3123.7,0.16003]
[1764790396305,1.588,3124.0,3123.8,8.739]
[1764790396904,1.588,3124.0,3123.8,8.89903]
[1764790397100,1.588,3124.0,3123.8,8.90305065]
[1764790398605,1.588,3124.0,3123.9,12.674]
[1764790399508,4.3085,3124.0,3123.9,12.674]
[1764790399709,1.588,3124.0,3123.9,12.674]
[1764790400104,4.3085,3124.0,3123.8,0.16405065]
[1764790400411,4.3085,3124.0,3123.9,8.232]
[1764790400608,2.7205,3123.9,3123.8,0.16405065]
[1764790400912,2.7205,3123.9,3123.8,8.86402065]
[1764790400913,3.845,3123.9,3123.8,8.86402065]
[1764790401105,2.7205,3123.9,3123.8,8.86402065]
[1764790402009,2.7205,3123.9,3123.8,0.00402065]
[1764790402212,3.845,3123.9,3123.8,0.00402065]
[1764790403415,3.845,3123.9,3123.8,1.74602065]
[1764790404509,6.0,3123.9,3123.4,0.0034]
[1764790404715,3.845,3123.7,3123.4,0.0034]
[1764790405506,3.845,3122.9,3122.8,1.40974401]
[1764790405711,3.845,3122.9,3122.8,4.75774401]
[1764790405916,2.7205,3122.9,3122.8,4.76042125]
[1764790406113,1.588,3123.0,3122.8,4.76042125]
[1764790407314,0.00480077,3123.2,3122.8,5.90095276]
[1764790407613,1.588,3123.0,3122.9,0.16007]
[1764790408215,1.588,3123.0,3122.9,1.30060151]
[1764790409121,1.588,3123.0,3122.9,1.87772708]
[1764790410120,5.433,3123.0,3122.9,1.87772708]
[1764790410313,5.433,3123.0,3122.9,12.83407]
[1764790410714,5.433,3123.0,3122.9,14.55172708]
[1764790410914,1.588,3123.0,3122.9,14.55172708]
[1764790411316,0.00480077,3123.2,3123.1,0.16006]
[1764790411515,0.00480077,3123.2,3123.1,2.45026944]
[1764790412425,0.00480077,3123.2,3123.1,15.12726944]
[1764790415622,1.588,3124.0,3123.6,0.16004]
[1764790415918,1.588,3124.0,3123.7,1.14594437]
[1764790416721,5.4327,3123.8,3123.7,1.14594437]
[1764790418925,5.3558,3123.7,3123.6,1.14594437]
[1764790419323,5.3102,3123.6,3123.5,1.14594437]
[1764790422328,6.868,3123.5,3123.4,11.332]
[1764790422924,5.3102,3123.4,3123.3,5.50691656]
[1764790423124,1.5578,3123.5,3123.3,18.18091656]
[1764790423326,1.5578,3123.5,3123.4,0.16005]
[1764790423620,1.588,3124.0,3123.4,6.07988874]
[1764790423821,1.588,3124.0,3123.8,1.72059344]
[1764790424131,2.6929,3123.9,3123.8,1.72059344]
[1764790424332,2.6929,3123.9,3123.5,2.29188874]
[1764790424835,1.588,3124.0,3123.8,0.16002]
[1764790425431,1.588,3124.0,3123.9,2.29188874]
[1764790426119,1.588,3124.0,3123.8,0.16002]
[1764790426326,1.588,3124.0,3123.9,2.29579964]
[1764790427032,1.588,3124.0,3123.8,0.16002]
[1764790427234,2.6929,3123.9,3123.8,0.16002]
[1764790427433,1.588,3124.0,3123.8,12.83402]
[1764790429031,2.6929,3123.9,3123.8,0.16002]
[1764790429238,5.3102,3123.9,3123.8,12.83302]
[1764790430530,1.588,3124.0,3123.8,12.83302]
[1764790430731,4.2809,3124.0,3123.9,2.29565555]
[1764790431533,1.588,3124.0,3123.9,0.16002]
[1764790431737,0.00480077,3124.2,3124.1,0.16001]
[1764790431940,0.003165,3124.2,3124.1,0.16001]
[1764790432151,0.003165,3124.2,3124.1,3.94801]
[1764790432340,0.003165,3124.2,3124.1,3.02968223]
[1764790432640,0.003165,3124.2,3124.1,6.16001]
[1764790432844,0.003165,3124.2,3124.1,0.16001]
[1764790434144,2.696065,3124.2,3124.1,10.5100389]
[1764790434346,0.003165,3124.2,3124.1,7.64401]
[1764790435947,0.003165,3124.2,3124.1,10.5100389]
[1764790439742,1.59046824,3125.0,3124.1,11.66671466]
[1764790439949,6.90066824,3125.0,3124.9,0.15997]
[1764790440148,6.90066824,3125.0,3124.9,12.83097]
[1764790440542,6.90066824,3125.0,3124.7,2.29118934]
[1764790440543,5.3102,3124.8,3124.7,2.29118934]
[1764790440745,1.59046824,3125.0,3124.7,12.92479437]
[1764790440945,1.59046824,3125.0,3124.9,1.71832086]
[1764790441244,6.90066824,3125.0,3124.9,1.71832086]
[1764790441448,6.90066824,3125.0,3124.9,14.38832086]
[1764790441746,4.28336824,3125.0,3124.9,14.38832086]
[1764790441941,1.59046824,3125.0,3124.9,12.82997]
[1764790442346,1.59046824,3125.0,3124.9,15.12115934]
[1764790442653,6.90066824,3125.0,3124.9,12.82997]
[1764790443751,4.959,3124.8,3124.7,2.29118934]
[1764790443951,6.3659,3124.5,3124.4,0.00480077]
[1764790444141,6.3659,3124.5,3124.4,11.45980077]
[1764790444546,1.4069,3124.5,3124.4,11.45980077]
[1764790444748,3.8976,3124.5,3124.4,11.61980077]
[1764790445348,1.4069,3124.5,3124.4,11.61980077]
[1764790446046,1.59046824,3125.0,3124.7,0.15998]
[1764790447554,4.959,3124.8,3124.7,0.15998]
[1764790447750,4.959,3124.8,3124.7,12.82898]
[1764790448849,4.959,3124.8,3124.7,0.15998]
[1764790449150,6.3659,3124.5,3124.4,2.29541638]
[1764790449357,6.3659,3124.5,3124.4,12.27841638]
[1764790449651,6.3659,3124.5,3124.4,12.67380077]
[1764790449854,4.959,3124.1,3124.0,2.29061561]
[1764790450044,4.959,3123.9,3123.8,0.0176]
[1764790450354,4.959,3123.9,3123.8,12.6866]
[1764790452852,4.959,3123.9,3123.8,0.0176]
[1764790453052,4.959,3123.9,3123.8,12.6866]
[1764790454255,4.959,3123.9,3123.8,0.0176]
[1764790454560,4.959,3123.9,3123.8,10.1496]
[1764790459263,4.959,3123.9,3123.8,0.0176]
[1764790459561,4.959,3123.9,3123.8,12.6886]
[1764790464366,4.959,3123.9,3123.8,13.83460071]
[1764790466066,4.959,3123.9,3123.8,1.16360071]
[1764790466360,2.4907,3123.9,3123.8,12.6886]
[1764790466871,4.959,3123.9,3123.8,12.6886]
[1764790467466,1.4069,3124.0,3123.8,12.84863]
[1764790467772,3.8976,3124.0,3123.8,12.84863]
[1764790468367,3.8976,3124.0,3123.8,12.83103]
[1764790469467,4.959,3123.9,3123.8,12.83103]
[1764790469971,1.4069,3124.0,3123.8,12.83103]
[1764790470266,6.3659,3124.0,3123.9,1.71879314]
[1764790470470,6.3659,3124.0,3123.9,1.14600424]
[1764790470671,6.3659,3124.0,3123.7,2.18870424]
[1764790470871,4.959,3123.8,3123.7,2.18870424]
[1764790471571,1.4069,3124.0,3123.7,2.76149314]
[1764790471771,2.4907,3123.9,3123.8,1.71879314]
[1764790472169,1.4069,3124.0,3123.8,1.87882314]
[1764790472569,2.4907,3123.9,3123.8,0.16003]
[1764790472770,4.959,3123.9,3123.8,0.16003]
[1764790473377,2.4907,3123.9,3123.8,0.16003]
[1764790473573,1.4069,3124.0,3123.8,0.16003]
[1764790473773,2.3102,3123.9,3123.8,0.16003]
[1764790474274,4.7478,3123.9,3123.7,1.0427]
[1764790474477,4.7478,3123.8,3123.7,1.0427]
[1764790475371,4.7478,3123.8,3123.7,0.0379]
[1764790476174,4.7478,3123.8,3123.5,2.29897215]
[1764790476375,4.7478,3123.6,3123.5,0.00480077]
[1764790477071,1.2755,3123.5,3123.0,2.29417138]
[1764790477280,6.0233,3123.0,3122.9,2.29417138]
[1764790477770,6.0233,3123.0,3122.7,2.29417138]
[1764790477977,4.7478,3122.9,3122.7,2.29417138]
[1764790479274,4.7478,3122.9,3122.8,10.75967724]
[1764790479884,4.7478,3122.9,3122.8,0.00267724]
[1764790484884,1.2755,3123.0,3122.8,0.16275724]
[1764790485081,1.2755,3123.0,3122.8,2.45692862]
[1764790487280,2.2085,3122.9,3122.8,2.45692862]
[1764790487581,1.2755,3123.0,3122.8,0.16275724]
[1764790487783,1.2755,3123.0,3122.9,2.29498161]
[1764790488383,3.484,3123.0,3122.9,2.29498161]
[1764790489382,1.2755,3123.0,3122.9,2.45505161]
[1764790489583,1.2755,3123.0,3122.9,0.16007]
[1764790491081,0.00480077,3123.2,3123.1,0.16006]
[1764790492781,4.36840077,3123.2,3123.1,0.16006]
[1764790493285,2.21330077,3123.2,3123.1,0.16006]
[1764790493581,0.00480077,3123.2,3123.1,0.16006]
[1764790493986,2.21330077,3123.2,3123.1,0.16006]
[1764790495288,4.36840077,3123.2,3123.1,0.16006]
[1764790495490,4.36840077,3123.2,3123.1,8.56706]
[1764790498988,4.3636,3123.1,3123.0,2.86771422]
[1764790499193,5.7468,3123.0,3122.9,5.16394797]
[1764790499486,4.3636,3122.9,3122.8,0.00267724]
[1764790499685,4.3636,3122.9,3122.8,12.67467724]
[1764790500791,4.3636,3122.9,3122.8,0.00267724]
[1764790500985,4.3636,3122.8,3122.6,2.86771422]
[1764790501189,4.3636,3122.6,3122.5,1.72745077]
[1764790501396,4.3636,3122.6,3122.5,14.39945077]
[1764790501986,4.36593776,3122.6,3122.5,14.40300792]
[1764790505997,4.479,3121.8,3121.4,6.65571422]
[1764790506189,1.2897,3121.5,3121.4,3.02786422]
[1764790506387,3.5416,3121.5,3121.4,12.83315]
[1764790506588,5.7687,3121.5,3121.4,12.83315]
[1764790506789,3.5416,3121.5,3121.4,12.83315]
[1764790506989,1.2897,3121.5,3121.4,12.8370934]
[1764790508296,1.2897,3121.5,3121.4,13.09687907]
[1764790508898,1.2897,3121.5,3121.4,0.42387907]
[1764790509098,1.2897,3121.5,3121.4,13.09687907]
[1764790509300,3.5416,3121.5,3121.4,13.09687907]
[1764790509599,3.5416,3121.5,3121.4,0.1640934]
[1764790509600,5.7687,3121.5,3121.4,0.1640934]
[1764790509898,5.7687,3121.5,3121.4,8.5379434]
[1764790510094,5.7687,3121.5,3121.4,10.25889721]
[1764790510900,5.7687,3121.5,3121.4,1.72489721]
[1764790511102,5.7687,3121.5,3121.4,13.44755172]
[1764790511302,5.7687,3121.5,3121.4,12.3009434]
[1764790512099,5.7687,3121.5,3121.4,0.0039434]
[1764790512608,1.2897,3121.5,3121.4,1.72489721]
[1764790512901,1.2897,3121.5,3121.4,0.0039434]
[1764790514201,1.2897,3121.5,3121.4,0.1640934]
[1764790515202,1.2897,3122.0,3121.4,0.1640934]
[1764790515203,3.5416,3122.0,3121.7,0.16013]
[1764790515397,1.2897,3122.0,3121.8,1.87673884]
[1764790516106,3.5416,3122.0,3121.8,1.87673884]
[1764790518299,1.2897,3122.0,3121.9,0.16012]
[1764790518602,3.5416,3122.0,3121.9,0.16012]
[1764790518804,5.7687,3122.0,3121.9,0.16012]
[1764790520308,1.2897,3122.0,3121.9,0.16012]
[1764790520706,1.2897,3122.0,3121.9,3.94812]
[1764790521606,5.7687,3122.0,3121.9,3.94812]
[1764790523710,1.2897,3122.0,3121.9,3.94812]
[1764790524113,1.2897,3122.0,3121.9,6.24130186]
[1764790524304,3.5416,3122.0,3121.9,6.24130186]
[1764790524505,5.7687,3122.0,3121.9,6.24130186]
[1764790524809,3.5416,3122.0,3121.9,6.24130186]
[1764790525613,1.2897,3122.0,3121.9,3.94812]
[1764790526508,2.2519,3122.3,3122.2,0.16011]
[1764790526704,4.479,3122.3,3122.2,20.19800761]
[1764790527900,2.2519,3122.3,3122.2,20.19800761]
[1764790528104,1.2897,3122.5,3122.4,0.1601]
[1764790528806,3.5416,3122.5,3122.4,0.1601]
[1764790529015,1.2897,3122.5,3122.4,0.1601]
[1764790530810,3.5416,3122.5,3122.4,0.1601]
[1764790531513,1.2897,3122.5,3122.4,3.9481]
[1764790534305,0.00233776,3122.6,3122.5,0.16009]
[1764790534511,0.00233776,3122.6,3122.5,1.44203131]
[1764790536421,0.00233776,3122.6,3122.5,3.02616026]
[1764790536618,1.97873776,3122.6,3122.5,3.02616026]
[1764790537014,4.09183776,3122.6,3122.5,0.16009]
[1764790538717,1.97873776,3122.6,3122.5,0.16009]
[1764790539615,1.97873776,3122.6,3122.5,3.94809]
[1764790540016,4.03213776,3122.6,3122.5,3.94809]
[1764790540520,4.03213776,3122.6,3122.5,0.16009]
[1764790542420,4.03213776,3122.6,3122.5,15.69716026]
[1764790542620,4.03213776,3122.6,3122.5,12.83109]
[1764790546625,4.03213776,3122.6,3122.4,2.86607026]
[1764790546626,5.3501,3122.5,3122.4,2.86607026]
[1764790546925,5.3501,3122.5,3122.0,0.16012]
[1764790546926,4.1155,3122.3,3122.2,2.29644414]
[1764790547121,4.1155,3122.3,3122.2,14.96744414]
[1764790548327,4.1155,3122.3,3122.2,12.671]
[1764790548529,5.3501,3122.0,3121.9,2.86607026]
[1764790548724,4.1155,3121.9,3121.8,2.86607026]
[1764790548928,4.1155,3121.9,3121.8,15.53607026]
[1764790553429,4.1155,3121.9,3121.8,15.69620026]
[1764790553623,2.0621,3121.9,3121.8,15.69620026]
[1764790554336,4.1155,3121.9,3121.8,15.69620026]
[1764790554730,4.1155,3121.9,3121.8,0.16013]
[1764790554927,4.1155,3121.9,3121.8,9.40113]
[1764790555829,4.1155,3121.9,3121.8,2.8362]
[1764790556027,5.3501,3121.5,3121.4,0.0039434]
[1764790556229,5.3501,3121.5,3121.4,12.0709434]
[1764790558028,5.3501,3121.5,3121.4,0.0039434]
[1764790558229,5.3501,3121.5,3121.4,8.7969434]
[1764790559443,5.3501,3121.5,3121.4,10.51773748]
[1764790559938,5.3501,3121.5,3121.4,10.8264434]
[1764790561039,5.3501,3121.5,3121.4,8.7969434]
[1764790561240,5.3501,3121.5,3121.4,10.51672453]
[1764790561536,1.2346,3122.0,3121.6,0.16014]
[1764790561537,5.3501,3122.0,3121.6,0.16014]
[1764790561726,5.3501,3122.0,3121.9,2.0295]
[1764790561727,3.2967,3122.0,3121.9,2.0295]
[1764790562032,1.2346,3122.5,3121.9,5.89468236]
[1764790562238,5.3501,3122.5,3122.4,4.0151]
[1764790562544,4.1155,3122.3,3122.2,1.71946236]
[1764790562733,4.1155,3122.3,3122.2,12.99196236]
[1764790563037,4.1155,3122.3,3122.2,10.96246236]
[1764790563438,4.1155,3122.3,3122.2,12.99196236]
[1764790563946,4.1155,3122.3,3122.2,15.11576236]
[1764790564239,5.712,3122.5,3122.4,4.545]
[1764790564441,5.712,3122.5,3122.4,6.26424442]
[1764790564638,0.00233776,3122.6,3122.5,4.545]
[1764790564840,0.00233776,3122.6,3122.5,6.48681892]
[1764790565032,2.46883776,3122.6,3122.5,5.82751892]
[1764790565231,4.47973776,3122.6,3122.5,5.82751892]
[1764790566138,4.47973776,3122.6,3122.5,5.98760892]
[1764790566347,2.46883776,3122.6,3122.5,5.98760892]
[1764790566841,0.00233776,3122.6,3122.5,5.98760892]
[1764790567840,0.00233776,3122.6,3122.5,8.63480181]
[1764790568040,0.00233776,3122.6,3122.5,6.34250892]
[1764790569949,0.00480077,3123.2,3123.1,4.70506]
[1764790570141,1.72266,3123.9,3123.1,4.70506]
[1764790570142,6.20006,3123.9,3123.8,4.545]
[1764790570445,4.4774,3123.8,3123.7,2.97044899]
[1764790570739,4.4774,3123.8,3123.6,1.71838898]
[1764790570943,4.4774,3123.7,3123.6,4.72858979]
[1764790571645,4.4774,3123.7,3123.6,0.00358979]
[1764790571844,4.4774,3123.1,3123.0,1.71838898]
[1764790572037,4.4774,3123.1,3123.0,11.515]
[1764790572343,2.4665,3123.1,3123.0,11.515]
[1764790572846,5.9958,3123.5,3123.4,2.4212]
[1764790573646,4.4774,3123.4,3123.3,3.67326001]
[1764790574451,4.4774,3123.4,3123.3,5.79706001]
[1764790575143,4.48041779,3123.8,3123.7,4.545]
[1764790575344,4.48041779,3123.8,3123.7,2.4212]
[1764790575845,4.4774,3123.7,3123.6,3.67326001]
[1764790576741,4.4774,3123.7,3123.6,1.25206001]
[1764790576933,4.4774,3123.4,3123.3,2.96967373]
[1764790577139,4.4774,3123.4,3123.3,10.42461372]
[1764790577348,3.9849,3123.5,3123.4,4.545]
[1764790577543,2.46951779,3123.8,3123.7,2.4212]
[1764790577748,4.48041779,3123.8,3123.7,5.79706001]
[1764790578142,4.48041779,3123.8,3123.7,1.25206001]
[1764790578550,4.48041779,3123.8,3123.7,3.67326001]
[1764790578850,2.46951779,3123.8,3123.7,7.51467373]
[1764790579148,2.46951779,3123.8,3123.7,5.79706001]
[1764790579149,4.48041779,3123.8,3123.7,5.79706001]
[1764790579545,4.48041779,3123.8,3123.6,1.87765372]
[1764790579745,4.4774,3123.6,3123.5,1.71761372]
[1764790580046,5.9958,3123.5,3123.4,2.96967373]
[1764790580248,5.9958,3123.5,3123.4,11.82106001]
[1764790580646,5.9958,3123.5,3123.4,14.24226001]
[1764790581148,5.9958,3123.5,3123.4,16.36606001]
[1764790581839,5.9958,3123.5,3123.4,14.24226001]
[1764790582149,5.9958,3123.5,3123.4,11.82106001]
[1764790582345,5.9958,3123.5,3123.3,1.71761372]
[1764790582547,5.9958,3123.5,3123.1,5.55093373]
[1764790582548,4.4774,3123.2,3123.1,5.55093373]
[1764790582850,4.4774,3123.2,3123.1,16.67873373]
[1764790583145,4.4774,3123.2,3123.1,7.67473373]
[1764790583351,4.4774,3123.2,3123.1,20.34073373]
[1764790584045,4.4774,3123.2,3123.1,16.49932001]
[1764790584644,4.4774,3123.2,3123.1,18.62312001]
[1764790584954,4.4774,3123.2,3123.1,17.37106]
[1764790585155,4.48041779,3123.8,3123.7,4.545]
[1764790585451,4.48041779,3123.8,3123.7,1.25206001]
[1764790585752,4.48041779,3123.8,3123.3,0.16005]
[1764790585753,2.0109,3123.6,3123.4,1.25206001]
[1764790585947,5.9958,3123.5,3123.4,3.67326001]
[1764790586150,5.9958,3123.5,3123.4,4.545]
[1764790586351,5.9958,3123.5,3123.4,3.67326001]
[1764790586751,4.4774,3123.4,3123.3,0.16005]
[1764790586946,1.5184,3123.5,3123.3,0.16005]
[1764790586947,1.5184,3123.5,3123.3,10.381]
[1764790587147,4.4774,3123.4,3123.3,10.381]
[1764790587546,4.4774,3123.4,3123.3,14.926]
[1764790587951,4.48041779,3123.8,3123.7,4.545]
[1764790588256,4.48041779,3123.8,3123.7,5.79706001]
[1764790588751,4.4774,3123.6,3123.5,1.87765372]
[1764790589465,4.4774,3123.6,3123.5,2.58124]
[1764790589750,4.4774,3123.6,3123.5,4.70504]
[1764790589951,4.4774,3123.2,3123.1,4.545]
[1764790590153,4.4774,3123.2,3123.1,18.46306001]
[1764790590354,2.4665,3123.2,3123.1,20.75424532]
[1764790590654,1.5184,3123.5,3123.4,2.4212]
[1764790590655,5.9958,3123.5,3123.4,2.4212]
[1764790591056,5.9958,3123.5,3123.4,3.67326001]
[1764790592247,5.9958,3123.5,3123.4,1.25206001]
[1764790592454,5.9958,3123.5,3123.3,2.29252584]
[1764790592754,4.4774,3123.4,3123.3,2.29252584]
[1764790592951,4.4774,3123.4,3123.3,14.08452584]
[1764790593144,4.4774,3123.4,3123.3,2.29252584]
[1764790593353,4.4774,3123.4,3123.3,12.665]
[1764790593853,4.4774,3123.4,3123.3,15.0862]
[1764790594646,4.4774,3123.4,3123.3,12.665]
[1764790595451,4.4774,3123.4,3123.3,14.801]
[1764790597163,4.4774,3123.4,3123.3,17.09352584]
[1764790597552,2.4665,3123.4,3123.3,19.40542584]
[1764790598159,5.0085,3123.4,3123.3,19.40542584]
[1764790598858,5.0085,3123.4,3123.3,2.29252584]
[1764790599157,4.4183,3123.2,3123.0,2.29628504]
[1764790599362,4.4183,3123.1,3123.0,2.29628504]
[1764790599558,4.4183,3123.1,3123.0,0.0037592]
[1764790600455,4.4183,3123.1,3123.0,1.72918308]
[1764790604168,4.4183,3123.1,3123.0,0.0037592]
[1764790608380,4.4183,3123.1,3123.0,2.1759592]
[1764790608875,4.4183,3123.1,3123.0,0.0037592]
[1764790609670,5.9367,3123.5,3123.4,2.1722]
[1764790609865,4.4183,3123.1,3123.0,2.1759592]
[1764790610572,4.4183,3123.1,3123.0,4.4354592]
[1764790611171,4.4183,3123.1,3123.0,2.3360292]
[1764790611873,4.4183,3123.1,3123.0,0.0037592]
[1764790615475,4.977,3122.5,3122.2,2.29252584]
[1764790615668,4.977,3122.5,3121.3,3.788]
[1764790615669,4.4183,3121.7,3121.6,6.72422584]
[1764790615871,5.6748,3122.0,3121.9,4.4317]
[1764790616070,2.1996,3122.5,3122.4,4.4317]
[1764790616269,4.4183,3122.5,3122.4,4.4317]
[1764790616469,4.4183,3122.5,3122.4,4.43440441]
[1764790616874,5.6748,3122.5,3122.4,4.43440441]
[1764790618174,5.6748,3122.5,3122.4,0.00270441]
[1764790619878,5.6748,3122.5,3122.4,2.17490441]
[1764790620374,5.6748,3122.5,3122.4,0.00270441]
[1764790622300,4.4183,3121.7,3121.6,4.4317]
[1764790623280,4.4183,3121.7,3121.6,4.43497583]
[1764790624390,2.1996,3121.7,3121.6,4.07887583]
[1764790624590,5.4557,3122.0,3121.9,4.0756]
[1764790624890,5.4557,3122.0,3121.9,1.9717]
[1764790625291,4.1992,3121.7,3121.6,4.07887583]
[1764790625794,4.1992,3121.7,3121.6,0.00327583]
[1764790626093,4.1992,3121.7,3121.6,1.97497583]
[1764790626586,4.1992,3121.7,3121.6,0.00327583]